fUSD/lending_fUSD_20240712
["ID","MTS","AMOUNT","RATE_DAILY","PERIOD"]
[331774130,1720758659775,-500.0,0.00013842,2]
[331774131,1720758659785,-500.0,0.00013842,2]
[331774132,1720758659795,-500.0,0.00013842,2]
[331774133,1720758659805,-270.55716895,0.00013842,2]
[331774134,1720758659815,-633.49,0.00013842,2]
[331774135,1720758659825,-500.0,0.00013842,2]
[331774136,1720758659834,-500.0,0.00013842,2]
[331774137,1720758659844,-500.0,0.00013842,2]
[331774138,1720758659854,-500.0,0.00013842,2]
[331774139,1720758659864,-500.0,0.00013842,2]
[331774140,1720758659873,-535.59,0.00013842,2]
[331774141,1720758659883,-924.7,0.00013842,2]
[331774142,1720758659893,-500.0,0.00013842,2]
[331774143,1720758659903,-500.0,0.00013842,2]
[331774144,1720758659913,-500.0,0.00013842,2]
[331774145,1720758659923,-625.48,0.00013842,2]
[331774146,1720758659932,-500.0,0.00013842,2]
[331774147,1720758659943,-500.0,0.00013842,2]
[331774148,1720758659953,-598.5,0.00013842,2]
[331774149,1720758659964,-788.29,0.00013842,2]
[331774150,1720758659974,-500.0,0.00013842,2]
[331774151,1720758659983,-500.0,0.00013842,2]
[331774152,1720758659994,-500.0,0.00013842,2]
[331774153,1720758660005,-500.0,0.00013842,2]
[331774154,1720758660014,-500.0,0.00013842,2]
[331774155,1720758660024,-500.0,0.00013842,2]
[331774156,1720758660034,-500.0,0.00013842,2]
[331774157,1720758660044,-853.63,0.00013842,2]
[331774158,1720758660054,-500.0,0.00013842,2]
[331774159,1720758660064,-500.0,0.00013842,2]
[331774160,1720758660074,-500.0,0.00013842,2]
[331774161,1720758660084,-500.0,0.00013842,2]
[331774162,1720758660093,-500.0,0.00013842,2]
[331774163,1720758660103,-500.0,0.00013842,2]
[331774164,1720758660113,-512.18,0.00013842,2]
[331774165,1720758660122,-603.96,0.00013842,2]
[331774166,1720758660132,-500.0,0.00013842,2]
[331774167,1720758660142,-500.0,0.00013842,2]
[331774168,1720758660152,-500.0,0.00013842,2]
[331774169,1720758660161,-500.0,0.00013842,2]
[331774170,1720758660171,-500.0,0.00013842,2]
[331774171,1720758660181,-397.77,0.00013842,2]
[331774172,1720758660191,-500.0,0.00013842,2]
[331774173,1720758660201,-559.27,0.00013842,2]
[331774174,1720758660211,-500.0,0.00013842,2]
[331774175,1720758660221,-561.04,0.00013842,2]
[331774176,1720758660231,-500.0,0.00013842,2]
[331774177,1720758660241,-500.0,0.00013842,2]
[331774178,1720758660255,-703.79,0.00013842,2]
[331774179,1720758660264,-500.0,0.00013842,2]
[331774180,1720758660274,-500.0,0.00013842,2]
[331774181,1720758660283,-542.63,0.00013842,2]
[331774182,1720758660295,-500.0,0.00013842,2]
[331774183,1720758660305,-500.0,0.00013842,2]
[331774184,1720758660315,-500.0,0.00013842,2]
[331774185,1720758660327,-500.0,0.00013842,2]
[331774186,1720758660338,-500.0,0.00013842,2]
[331774187,1720758660347,-844.06,0.00013842,2]
[331774188,1720758660357,-500.0,0.00013842,2]
[331774189,1720758660367,-500.0,0.00013842,2]
[331774190,1720758660376,-2218.03,0.00013842,2]
[331774191,1720758660386,-500.0,0.00013842,2]
[331774192,1720758660396,-500.0,0.00013842,2]
[331774193,1720758660406,-697.26,0.00013842,2]
[331774194,1720758660415,-500.0,0.00013842,2]
[331774195,1720758660425,-500.0,0.00013842,2]
[331774196,1720758660435,-500.0,0.00013842,2]
[331774197,1720758660444,-500.0,0.00013842,2]
[331774198,1720758660454,-500.0,0.00013842,2]
[331774199,1720758660463,-574.36,0.00013842,2]
[331774200,1720758660473,-995.23,0.00013842,2]
[331774201,1720758660482,-500.0,0.00013842,2]
[331774202,1720758660493,-500.0,0.00013842,2]
[331774203,1720758660503,-500.0,0.00013842,2]
[331774204,1720758660513,-500.0,0.00013842,2]
[331774205,1720758660523,-500.0,0.00013842,2]
[331774206,1720758660533,-500.0,0.00013842,2]
[331774207,1720758660543,-500.0,0.00013842,2]
[331774208,1720758660553,-709.65,0.00013842,2]
[331774209,1720758660563,-704.23,0.00013842,2]
[331774210,1720758660573,-500.0,0.00013842,2]
[331774211,1720758660582,-500.0,0.00013842,2]
[331774212,1720758660592,-500.0,0.00013842,2]
[331774213,1720758660601,-500.0,0.00013842,2]
[331774214,1720758660610,-500.0,0.00013842,2]
[331774215,1720758660620,-500.0,0.00013842,2]
[331774216,1720758660629,-500.0,0.00013842,2]
[331774217,1720758660638,-500.0,0.00013842,2]
[331774218,1720758660648,-500.0,0.00013842,2]
[331774219,1720758660658,-500.0,0.00013842,2]
[331774220,1720758660667,-500.0,0.00013842,2]
[331774221,1720758660678,-500.0,0.00013842,2]
[331774222,1720758660688,-659.57,0.00013842,2]
[331774223,1720758660698,-500.0,0.00013842,2]
[331774224,1720758660707,-500.0,0.00013842,2]
[331774225,1720758660717,-500.0,0.00013842,2]
[331774226,1720758660726,-632.13,0.00013842,2]
[331774227,1720758660736,-500.0,0.00013842,2]
[331774228,1720758660747,-500.0,0.00013842,2]
[331774229,1720758660757,-511.42,0.00013842,2]
[331774230,1720758660767,-500.0,0.00013842,2]
[331774231,1720758660778,-500.0,0.00013842,2]
[331774232,1720758660788,-500.0,0.00013842,2]
[331774233,1720758660798,-500.0,0.00013842,2]
[331774234,1720758660808,-500.0,0.00013842,2]
[331774235,1720758660819,-500.0,0.00013842,2]
[331774236,1720758660830,-500.0,0.00013842,2]
[331774237,1720758660840,-500.0,0.00013842,2]
[331774238,1720758660851,-500.0,0.00013842,2]
[331774239,1720758660862,-500.0,0.00013842,2]
[331774240,1720758660871,-619.86,0.00013842,2]
[331774241,1720758660881,-500.0,0.00013842,2]
[331774242,1720758660892,-500.0,0.00013842,2]
[331774243,1720758660901,-500.0,0.00013842,2]
[331774244,1720758660911,-500.0,0.00013842,2]
[331774245,1720758660921,-500.0,0.00013842,2]
[331774246,1720758660931,-649.87,0.00013842,2]
[331774247,1720758660941,-500.0,0.00013842,2]
[331774248,1720758661110,-500.0,0.00013842,2]
[331774249,1720758661121,-500.0,0.00013842,2]
[331774250,1720758661131,-500.0,0.00013842,2]
[331774251,1720758661141,-500.0,0.00013842,2]
[331774252,1720758661150,-500.0,0.00013842,2]
[331774253,1720758661159,-500.0,0.00013842,2]
[331774254,1720758661169,-500.0,0.00013842,2]
[331774255,1720758661179,-221.03,0.00013842,2]
[331774256,1720758661188,-919.98,0.00013842,2]
[331774257,1720758661197,-500.0,0.00013842,2]
[331774258,1720758661207,-500.0,0.00013842,2]
[331774259,1720758661216,-534.57,0.00013842,2]
[331774260,1720758661226,-500.0,0.00013842,2]
[331774261,1720758661236,-1129.97,0.00013842,2]
[331774262,1720758661249,-500.0,0.00013842,2]
[331774263,1720758661258,-500.0,0.00013842,2]
[331774264,1720758661267,-500.0,0.00013842,2]
[331774265,1720758661278,-530.53,0.00013842,2]
[331774266,1720758661288,-500.0,0.00013842,2]
[331774267,1720758661298,-815.63,0.00013842,2]
[331774268,1720758661307,-615.33,0.00013842,2]
[331774269,1720758661317,-500.0,0.00013842,2]
[331774270,1720758661327,-500.0,0.00013842,2]
[331774271,1720758661336,-500.0,0.00013842,2]
[331774272,1720758661345,-500.0,0.00013842,2]
[331774273,1720758661355,-715.46,0.00013842,2]
[331774274,1720758661364,-500.0,0.00013842,2]
[331774275,1720758661373,-500.0,0.00013842,2]
[331774276,1720758661383,-511.78,0.00013842,2]
[331774277,1720758661392,-500.0,0.00013842,2]
[331774278,1720758661401,-500.0,0.00013842,2]
[331774279,1720758661411,-500.0,0.00013842,2]
[331774280,1720758661420,-500.0,0.00013842,2]
[331774281,1720758661429,-634.19,0.00013842,2]
[331774282,1720758661439,-500.0,0.00013842,2]
[331774283,1720758661448,-1014.38,0.00013842,2]
[331774284,1720758661457,-500.0,0.00013842,2]
[331774285,1720758661467,-500.0,0.00013842,2]
[331774286,1720758661476,-500.0,0.00013842,2]
[331774287,1720758661486,-500.0,0.00013842,2]
[331774288,1720758661496,-500.0,0.00013842,2]
[331774289,1720758661505,-503.77,0.00013842,2]
[331774290,1720758661515,-500.0,0.00013842,2]
[331774291,1720758661524,-155.79,0.00013842,2]
[331774292,1720758661534,-500.0,0.00013842,2]
[331774293,1720758661543,-500.0,0.00013842,2]
[331774294,1720758661552,-500.0,0.00013842,2]
[331774295,1720758661562,-518.65,0.00013842,2]
[331774296,1720758661571,-500.0,0.00013842,2]
[331774297,1720758661581,-500.0,0.00013842,2]
[331774298,1720758661590,-170.18764366,0.00013842,2]
[331774299,1720758661600,-1153.24,0.00013842,2]
[331774300,1720758661609,-500.0,0.00013842,2]
[331774301,1720758661619,-500.0,0.00013842,2]
[331774302,1720758661628,-500.0,0.00013842,2]
[331774303,1720758661637,-500.0,0.00013842,2]
[331774304,1720758661646,-500.0,0.00013842,2]
[331774305,1720758661655,-424.42651505,0.00013842,2]
[331774306,1720758662097,-75.57348495,0.00013842,2]
[331774307,1720758662107,-500.0,0.00013842,2]
[331774308,1720758662117,-500.0,0.00013842,2]
[331774309,1720758662126,-500.0,0.00013842,2]
[331774310,1720758662135,-500.0,0.00013842,2]
[331774311,1720758662145,-646.02,0.00013842,2]
[331774312,1720758662154,-500.0,0.00013842,2]
[331774313,1720758662164,-500.0,0.00013842,2]
[331774314,1720758662174,-500.0,0.00013842,2]
[331774315,1720758662184,-500.0,0.00013842,2]
[331774316,1720758662194,-500.0,0.00013842,2]
[331774317,1720758662203,-500.0,0.00013842,2]
[331774318,1720758662213,-714.72,0.00013842,2]
[331774319,1720758662222,-500.0,0.00013842,2]
[331774320,1720758662232,-500.0,0.00013842,2]
[331774321,1720758662242,-500.0,0.00013842,2]
[331774322,1720758662253,-500.0,0.00013842,2]
[331774323,1720758662263,-253.17445127,0.00013842,2]
[331774324,1720758662272,-500.0,0.00013842,2]
[331774325,1720758662281,-500.0,0.00013842,2]
[331774326,1720758662291,-635.64,0.00013842,2]
[331774327,1720758662300,-500.0,0.00013842,2]
[331774328,1720758662310,-500.0,0.00013843,2]
[331774329,1720758662321,-500.0,0.00013843,2]
[331774330,1720758662330,-500.0,0.00013843,2]
[331774331,1720758662339,-500.0,0.00013843,2]
[331774332,1720758662349,-500.0,0.00013843,2]
[331774333,1720758662358,-500.0,0.00013843,2]
[331774334,1720758662367,-376.9814761,0.00013843,2]
[331774335,1720758662376,-500.0,0.00013843,2]
[331774336,1720758662386,-500.0,0.00013843,2]
[331774337,1720758662395,-625.72,0.00013843,2]
[331774338,1720758662405,-500.0,0.00013843,2]
[331774339,1720758662414,-157.69,0.00013843,2]
[331774340,1720758662424,-620.36,0.00013843,2]
[331774341,1720758662433,-500.0,0.00013843,2]
[331774342,1720758662443,-500.0,0.00013843,2]
[331774343,1720758662452,-163.4,0.00013843,2]
[331774344,1720758662461,-500.0,0.00013843,2]
[331774345,1720758662471,-500.0,0.00013843,2]
[331774346,1720758662480,-384.92,0.00013843,2]
[331774347,1720758662490,-500.0,0.00013843,2]
[331774348,1720758662500,-500.0,0.00013843,2]
[331774349,1720758662510,-566.69979,0.0001386,2]
[331774350,1720758662520,-628.53270796,0.00013889,2]
[331774351,1720758662530,-1414.21,0.0001389,2]
[331774352,1720758662538,-309.88,0.0001389,3]
[331774353,1720758662547,-500.0,0.00013895,2]
[331774354,1720758662557,-500.0,0.00013895,2]
[331774355,1720758662566,-500.0,0.00013895,2]
[331774356,1720758662575,-500.0,0.00013895,2]
[331774357,1720758662584,-500.0,0.00013895,2]
[331774358,1720758662593,-803.48,0.00013895,2]
[331774359,1720758662603,-500.0,0.00013895,2]
[331774360,1720758662613,-921.35,0.00013895,2]
[331774361,1720758662623,-500.0,0.00013895,2]
[331774362,1720758662633,-649.78,0.00013895,2]
[331774363,1720758662642,-616.09,0.00013895,2]
[331774364,1720758662651,-500.0,0.00013895,2]
[331774365,1720758662660,-500.0,0.00013895,2]
[331774366,1720758662669,-500.0,0.00013895,2]
[331774367,1720758662678,-500.0,0.00013895,2]
[331774368,1720758662688,-500.0,0.00013895,2]
[331774369,1720758662698,-5136.07,0.00013895,2]
[331774370,1720758662707,-515.07,0.00013895,2]
[331774371,1720758662716,-500.0,0.00013895,2]
[331774372,1720758662726,-823.27,0.00013895,2]
[331774373,1720758662735,-621.483,0.00013895,2]
[331774374,1720758662746,-1457.13,0.00013896,2]
[331774375,1720758662756,-500.0,0.00013896,2]
[331774376,1720758662766,-500.0,0.00013896,2]
[331774377,1720758662775,-500.0,0.00013896,2]
[331774378,1720758662784,-628.47,0.00013896,2]
[331774379,1720758662794,-572.85,0.00013896,2]
[331774380,1720758662803,-1036.02,0.00013896,2]
[331774381,1720758662812,-578.62,0.00013896,2]
[331774382,1720758663121,-692.72,0.00013896,2]
[331774383,1720758663142,-619.38,0.00013896,2]
[331774384,1720758663152,-944.04,0.00013896,2]
[331774385,1720758663161,-500.0,0.00013896,2]
[331774386,1720758663171,-1005.7,0.00013896,2]
[331774387,1720758663180,-238.22559756,0.00013896,2]
[331774388,1720758663199,-596.04440244,0.00013896,2]
[331774389,1720758663209,-25.19559756,0.00013896,2]
[331774390,1720758663221,-935.21484251,0.00013896,2]
[331774391,1720758663232,-399.28955993,0.00013896,2]
[331774392,1720758663244,-708.71,0.00013896,2]
[331774393,1720758663255,-293.60044127,0.00013896,2]
[331774394,1720758663266,-1000.62955873,0.00013896,2]
[331774395,1720758663277,-936.22367379,0.00013896,2]
[331774396,1720758663290,-627.98632621,0.00013896,2]
[331774397,1720758663300,-761.03,0.00013896,2]
[331774398,1720758663310,-500.0,0.00013896,2]
[331774399,1720758663320,-993.48,0.00013896,2]
[331774400,1720758663330,-500.0,0.00013896,2]
[331774401,1720758663339,-794.46,0.00013896,2]
[331774402,1720758663349,-500.0,0.00013896,2]
[331774403,1720758663359,-500.0,0.00013896,2]
[331774404,1720758663368,-500.0,0.00013896,2]
[331774405,1720758663378,-677.22,0.00013896,2]
[331774406,1720758663388,-500.0,0.00013896,2]
[331774407,1720758663397,-563.31,0.00013896,2]
[331774408,1720758663407,-517.9,0.00013896,2]
[331774409,1720758663418,-701.32,0.00013896,2]
[331774410,1720758663428,-924.74,0.00013896,2]
[331774411,1720758663437,-1270.13,0.00013896,2]
[331774412,1720758663447,-500.0,0.00013896,2]
[331774414,1720758663456,-1168.36,0.00013896,2]
[331774415,1720758663466,-830.61,0.00013896,2]
[331774416,1720758663476,-500.0,0.00013896,2]
[331774417,1720758663485,-500.0,0.00013896,2]
[331774418,1720758663497,-500.0,0.00013896,2]
[331774419,1720758663506,-777.96,0.00013896,2]
[331774420,1720758663516,-784.77,0.00013896,2]
[331774421,1720758663526,-500.0,0.00013896,2]
[331774422,1720758663535,-1569.26,0.00013896,2]
[331774423,1720758663545,-764.63,0.00013896,2]
[331774424,1720758663555,-500.0,0.00013896,2]
[331774425,1720758663564,-815.13,0.00013896,2]
[331774426,1720758663574,-500.0,0.00013896,2]
[331774427,1720758663584,-1683.08,0.00013896,2]
[331774428,1720758663593,-768.06,0.00013896,2]
[331774429,1720758663603,-500.0,0.00013896,2]
[331774430,1720758663612,-851.93,0.00013896,2]
[331774431,1720758663621,-1238.01,0.00013896,2]
[331774432,1720758663631,-500.0,0.00013896,2]
[331774433,1720758663640,-518.34,0.00013896,2]
[331774434,1720758663649,-717.7,0.00013896,2]
[331774435,1720758663658,-1693.52,0.00013896,2]
[331774436,1720758663668,-1094.11,0.00013896,2]
[331774437,1720758663677,-500.0,0.00013896,2]
[331774438,1720758663687,-507.61,0.00013896,2]
[331774439,1720758663696,-393.12,0.00013896,2]
[331774440,1720758663706,-886.83,0.00013896,2]
[331774441,1720758663715,-500.0,0.00013896,2]
[331774442,1720758663725,-614.13,0.00013896,2]
[331774443,1720758663735,-500.0,0.00013896,2]
[331774444,1720758663746,-500.0,0.00013896,2]
[331774445,1720758663755,-892.4,0.00013896,2]
[331774446,1720758663766,-500.0,0.00013896,2]
[331774447,1720758663775,-525.88,0.00013896,2]
[331774448,1720758663785,-500.0,0.00013896,2]
[331774449,1720758663794,-500.0,0.00013896,2]
[331774450,1720758663804,-500.0,0.00013896,2]
[331774451,1720758663814,-588.35,0.00013896,2]
[331774452,1720758663824,-500.0,0.00013896,2]
[331774453,1720758663833,-1397.01,0.00013896,2]
[331774454,1720758663843,-500.0,0.00013896,2]
[331774455,1720758663852,-500.0,0.00013896,2]
[331774456,1720758663862,-500.0,0.00013896,2]
[331774457,1720758663872,-500.0,0.00013896,2]
[331774458,1720758663882,-589.59,0.00013896,2]
[331774459,1720758663891,-500.0,0.00013896,2]
[331774460,1720758663901,-557.87713645,0.00013896,2]
[331774461,1720758663910,-730.81,0.00013896,2]
[331774462,1720758663920,-500.0,0.00013896,2]
[331774463,1720758663929,-817.94,0.00013896,2]
[331774464,1720758663939,-500.0,0.00013896,2]
[331774465,1720758663948,-540.85,0.00013896,2]
[331774466,1720758663958,-500.0,0.00013896,2]
[331774467,1720758663968,-509.31,0.00013896,2]
[331774468,1720758663977,-786.31,0.00013896,2]
[331774469,1720758663987,-875.18,0.00013896,2]
[331774470,1720758663997,-888.22,0.00013896,2]
[331774471,1720758664006,-549.6,0.00013896,2]
[331774472,1720758664016,-1401.22,0.00013896,2]
[331774473,1720758664026,-810.45,0.00013896,2]
[331774474,1720758664035,-667.36,0.00013896,2]
[331774475,1720758664045,-507.24,0.00013896,2]
[331774476,1720758664054,-500.0,0.00013896,2]
[331774477,1720758664064,-864.53,0.00013896,2]
[331774478,1720758664073,-779.1,0.00013896,2]
[331774479,1720758664083,-922.96,0.00013896,2]
[331774480,1720758664093,-500.0,0.00013896,2]
[331774481,1720758664102,-500.0,0.00013896,2]
[331774482,1720758664112,-671.41,0.00013896,2]
[331774483,1720758664120,-543.85,0.00013896,2]
[331774484,1720758664130,-598.04,0.00013896,2]
[331774485,1720758664140,-986.72,0.00013896,2]
[331774486,1720758664149,-500.0,0.00013896,2]
[331774487,1720758664159,-618.73,0.00013896,2]
[331774488,1720758664168,-500.0,0.00013896,2]
[331774489,1720758664179,-500.0,0.00013896,2]
[331774490,1720758664188,-500.0,0.00013896,2]
[331774491,1720758664198,-500.0,0.00013896,2]
[331774492,1720758664208,-500.0,0.00013896,2]
[331774493,1720758664217,-740.92,0.00013896,2]
[331774494,1720758664227,-604.37,0.00013896,2]
[331774495,1720758664237,-500.0,0.00013896,2]
[331774496,1720758664251,-786.28,0.00013896,2]
[331774497,1720758664261,-538.55,0.00013896,2]
[331774498,1720758664270,-538.0,0.00013896,2]
[331774499,1720758664280,-1448.91,0.00013896,2]
[331774500,1720758664290,-500.0,0.00013896,2]
[331774501,1720758664299,-500.0,0.00013896,2]
[331774502,1720758664309,-642.33,0.00013896,2]
[331774503,1720758664318,-500.0,0.00013896,2]
[331774504,1720758664328,-1361.18,0.00013896,2]
[331774505,1720758664343,-500.0,0.00013896,2]
[331774506,1720758664353,-500.0,0.00013896,2]
[331774507,1720758664363,-177.57254056,0.00013896,2]
[331774508,1720758664372,-500.0,0.00013896,2]
[331774509,1720758664382,-1037.01,0.00013896,2]
[331774510,1720758664391,-690.84,0.00013896,2]
[331774511,1720758664400,-509.41,0.00013896,2]
[331774512,1720758664410,-589.35,0.00013896,2]
[331774513,1720758664420,-500.0,0.00013896,2]
[331774514,1720758664430,-500.0,0.00013896,2]
[331774515,1720758664439,-500.0,0.00013896,2]
[331774516,1720758664449,-500.0,0.00013896,2]
[331774517,1720758664459,-551.28,0.00013896,2]
[331774518,1720758664468,-556.86,0.00013896,2]
[331774519,1720758664478,-746.04,0.00013896,2]
[331774520,1720758664488,-666.65,0.00013896,2]
[331774521,1720758664500,-753.45,0.00013896,2]
[331774522,1720758664509,-500.0,0.00013896,2]
[331774523,1720758664518,-790.62,0.00013896,2]
[331774524,1720758664528,-854.79,0.00013896,2]
[331774525,1720758664538,-721.56,0.00013896,2]
[331774526,1720758664547,-532.04,0.00013896,2]
[331774527,1720758664557,-1494.4,0.00013896,2]
[331774528,1720758664567,-1285.5,0.00013896,2]
[331774529,1720758664577,-1099.28,0.00013896,2]
[331774530,1720758664586,-628.38,0.00013896,2]
[331774531,1720758664596,-500.0,0.00013896,2]
[331774532,1720758664606,-500.0,0.00013896,2]
[331774533,1720758664615,-500.0,0.00013896,2]
[331774534,1720758664624,-500.0,0.00013896,2]
[331774535,1720758664634,-862.92,0.00013896,2]
[331774536,1720758664644,-500.0,0.00013896,2]
[331774537,1720758664653,-500.0,0.00013896,2]
[331774538,1720758664663,-736.95,0.00013896,2]
[331774539,1720758664672,-1127.31,0.00013896,2]
[331774540,1720758664682,-500.0,0.00013896,2]
[331774541,1720758664691,-185.32409301,0.00013896,2]
[331774542,1720758664701,-953.17,0.00013896,2]
[331774543,1720758664710,-744.3,0.00013896,2]
[331774544,1720758664720,-1553.0,0.00013896,2]
[331774545,1720758664729,-933.88,0.00013896,2]
[331774546,1720758664739,-500.0,0.00013896,2]
[331774547,1720758664750,-696.07,0.00013896,2]
[331774548,1720758664759,-560.14,0.00013896,2]
[331774549,1720758664769,-500.0,0.00013896,2]
[331774550,1720758664778,-602.46,0.00013896,2]
[331774551,1720758664788,-1115.43,0.00013896,2]
[331774552,1720758664797,-759.14,0.00013896,2]
[331774553,1720758664806,-649.78,0.00013896,2]
[331774554,1720758664815,-748.76,0.00013896,2]
[331774555,1720758664826,-979.08,0.00013896,2]
[331774556,1720758664835,-686.21,0.00013896,2]
[331774557,1720758664845,-500.0,0.00013896,2]
[331774558,1720758664855,-500.0,0.00013896,2]
[331774559,1720758664864,-519.55,0.00013896,2]
[331774560,1720758664874,-500.0,0.00013896,2]
[331774561,1720758664883,-7562.45,0.00013896,2]
[331774562,1720758664893,-500.0,0.00013896,2]
[331774563,1720758664903,-500.0,0.00013896,2]
[331774564,1720758664913,-2033.84,0.00013896,2]
[331774565,1720758664922,-516.63,0.00013896,2]
[331774566,1720758664932,-500.0,0.00013896,2]
[331774567,1720758664943,-1010.41,0.00013896,2]
[331774568,1720758664952,-500.0,0.00013896,2]
[331774569,1720758664962,-608.38,0.00013896,2]
[331774570,1720758664972,-500.0,0.00013896,2]
[331774571,1720758664983,-1458.84,0.00013896,2]
[331774572,1720758664994,-5430.47,0.00013896,2]
[331774573,1720758665003,-500.0,0.00013896,2]
[331774574,1720758665013,-500.0,0.00013896,2]
[331774575,1720758665022,-500.0,0.00013896,2]
[331774576,1720758665032,-778.99,0.00013896,2]
[331774577,1720758665041,-466.54383532,0.00013896,2]
[331774578,1720758665051,-1872.75,0.00013896,2]
[331774579,1720758665061,-500.0,0.00013896,2]
[331774580,1720758665071,-636.45,0.00013896,2]
[331774581,1720758665081,-831.67,0.00013896,2]
[331774582,1720758665092,-500.0,0.00013896,2]
[331774583,1720758665102,-585.83,0.00013896,2]
[331774584,1720758665112,-500.0,0.00013896,2]
[331774585,1720758665121,-619.76193011,0.00013896,2]
[331774586,1720758665131,-500.0,0.00013896,2]
[331774587,1720758665140,-500.0,0.00013896,2]
[331774588,1720758665150,-984.46,0.00013896,2]
[331774589,1720758665159,-500.0,0.00013897,2]
[331774590,1720758665169,-500.0,0.00013897,2]
[331774591,1720758665178,-500.0,0.00013897,2]
[331774592,1720758665188,-519.41,0.00013897,2]
[331774593,1720758665197,-500.0,0.00013897,2]
[331774594,1720758665207,-500.0,0.00013897,2]
[331774595,1720758665216,-500.0,0.00013897,2]
[331774596,1720758665226,-500.0,0.00013897,2]
[331774597,1720758665235,-500.0,0.00013897,2]
[331774598,1720758665248,-492.93,0.00013897,2]
[331774599,1720758665258,-500.0,0.00013897,2]
[331774600,1720758665267,-411.23517908,0.00013897,2]
[331774601,1720758665277,-500.0,0.00013897,2]
[331774602,1720758665288,-239.07,0.00013897,2]
[331774603,1720758665298,-801.0,0.00013897,2]
[331774604,1720758665307,-500.0,0.00013897,2]
[331774605,1720758665317,-500.0,0.00013897,2]
[331774606,1720758665327,-500.0,0.00013897,2]
[331774607,1720758665336,-350.27,0.00013897,2]
[331774608,1720758665346,-500.0,0.00013897,2]
[331774609,1720758665356,-500.0,0.00013897,2]
[331774610,1720758665365,-500.0,0.00013897,2]
[331774611,1720758665374,-500.0,0.00013897,2]
[331774612,1720758665384,-473.90457998,0.00013897,2]
[331774613,1720758665394,-500.0,0.00013897,2]
[331774614,1720758665403,-500.0,0.00013897,2]
[331774615,1720758665412,-500.0,0.00013897,2]
[331774616,1720758665422,-500.0,0.00013897,2]
[331774617,1720758665490,-500.0,0.00013897,2]
[331774618,1720758665500,-500.0,0.00013897,2]
[331774619,1720758665509,-771.42,0.00013897,2]
[331774620,1720758665519,-737.94,0.00013897,2]
[331774621,1720758665528,-500.0,0.00013897,2]
[331774622,1720758665537,-500.0,0.00013897,2]
[331774623,1720758665547,-500.65,0.00013897,2]
[331774624,1720758665556,-500.0,0.00013897,2]
[331774625,1720758665565,-521.22,0.00013897,2]
[331774626,1720758665574,-703.39,0.00013897,2]
[331774627,1720758665584,-500.0,0.00013897,2]
[331774628,1720758665593,-500.0,0.00013897,2]
[331774629,1720758665602,-500.0,0.00013897,2]
[331774630,1720758665612,-500.0,0.00013897,2]